fUST/lending_fUST_20240119
["ID","MTS","AMOUNT","RATE_DAILY","PERIOD"]
[312106827,1705630251358,-1628.83,0.00034794,3]
[312106828,1705630251367,-1875.28,0.00034794,3]
[312106829,1705630251376,-554.19,0.00034794,3]
[312106830,1705630251385,-500.0,0.00034794,3]
[312106831,1705630251395,-500.0,0.00034794,3]
[312106832,1705630251403,-618.85,0.00034794,3]
[312106833,1705630251413,-500.0,0.00034794,3]
[312106834,1705630251422,-707.09,0.00034794,3]
[312106835,1705630251431,-1096.83,0.00034794,3]
[312106836,1705630251440,-1452.86,0.00034794,3]
[312106837,1705630251449,-1634.22,0.00034794,3]
[312106838,1705630251459,-8867.42,0.00034794,3]
[312106839,1705630251468,-500.0,0.00034794,3]
[312106840,1705630251477,-1388.87,0.00034794,3]
[312106841,1705630251486,-750.83,0.00034794,3]
[312106842,1705630251495,-13711.72,0.00034794,3]
[312106843,1705630251505,-500.0,0.00034794,3]
[312106844,1705630251515,-2926.93,0.00034794,3]
[312106845,1705630251524,-872.03,0.00034794,3]
[312106846,1705630251533,-500.0,0.00034794,3]
[312106847,1705630251542,-3844.51,0.00034794,3]
[312106848,1705630251551,-500.0,0.00034794,3]
[312106849,1705630251562,-637.62,0.00034794,3]
[312106850,1705630251571,-3594.7,0.00034794,3]
[312106851,1705630251580,-1827.79,0.00034794,3]
[312106852,1705630251590,-500.0,0.00034794,3]
[312106853,1705630251666,-1139.26,0.00034794,3]
[312106854,1705630251676,-1875.08,0.00034794,3]
[312106855,1705630251686,-900.93,0.0003492,3]
[312106856,1705630251697,-430.86875032,0.0003499,6]
[312106857,1705630251706,-3119.34141957,0.00035,18]
[312106858,1705630251715,-591.69239792,0.00035,2]
[312106859,1705630251724,-2084.34070549,0.00035,4]
[312106860,1705630251733,-154.95351395,0.00035,4]
[312106861,1705630251742,-333.00867696,0.00035,4]
[312106862,1705630251752,-154.95351395,0.00035,2]
[312106863,1705630251761,-1994.8,0.00035,2]
[312106864,1705630251770,-150.0,0.00035,4]
[312106865,1705630251780,-154.90705577,0.00035,4]
[312106866,1705630251791,-1000.0,0.00035,2]
[312106867,1705630251801,-850.4122818,0.00035,14]
[312106868,1705630251810,-13390.70335273,0.00035,4]
[312106869,1705630251819,-939.20081235,0.00035,3]
[312106870,1705630251828,-5533.47307729,0.00035,2]
[312106871,1705630251838,-8715.39129024,0.00035,2]
[312106872,1705630251847,-3656.988551,0.00035,2]
[312106873,1705630251856,-3656.988551,0.00035,2]
[312106874,1705630251866,-243.70802851,0.00035,2]
[312106875,1705630251876,-1611.070596,0.00035065,2]
[312106876,1705630251885,-1611.070596,0.00035065,2]
[312106877,1705630251895,-262.96145629,0.00035065,4]
[312106878,1705630251904,-1201.32903172,0.00035065,4]
[312106879,1705630251913,-1245.22015604,0.00035065,4]
[312106880,1705630251923,-179.35585977,0.00035065,4]
[312106881,1705630251932,-274.0786051,0.00035065,4]
[312106882,1705630251943,-2618.33218236,0.00035065,4]
[312106883,1705630251952,-155.41033754,0.00035065,4]
[312106884,1705630251962,-1586.65362302,0.00035065,4]
[312106885,1705630251971,-302.9226631,0.00035065,2]
[312106886,1705630251980,-155.05031325,0.00035065,4]
[312106887,1705630251989,-328.27297128,0.00035066,4]
[312106888,1705630251999,-231.57803867,0.00035066,4]
[312106889,1705630252008,-294.58131325,0.00035066,4]
[312106890,1705630252017,-5962.57606808,0.00035067,4]
[312106891,1705630252027,-900.93,0.00035067,3]
[312106892,1705630252036,-900.93,0.00035067,3]
[312106893,1705630252045,-900.93,0.00035067,3]
[312106894,1705630252054,-900.93,0.00035067,3]
[312106895,1705630252063,-901.01220729,0.00035067,3]
[312106896,1705630252072,-151.0,0.00035068,2]
[312106897,1705630252082,-3656.988551,0.00035068,2]
[312106898,1705630252091,-3656.988551,0.00035068,2]
[312106899,1705630252100,-500.0,0.00035068,3]
[312106900,1705630252109,-500.0,0.00035068,3]
[312106901,1705630252118,-500.0,0.00035068,3]
[312106902,1705630252127,-537.49,0.00035068,3]
[312106903,1705630252136,-500.0,0.00035068,3]
[312106904,1705630252145,-854.95,0.00035068,3]
[312106905,1705630252154,-500.0,0.00035068,3]
[312106906,1705630252164,-500.0,0.00035068,3]
[312106907,1705630252173,-500.0,0.00035068,3]
[312106908,1705630252182,-1002.73,0.00035068,3]
[312106909,1705630252193,-528.86,0.00035068,3]
[312106910,1705630252203,-1240.85,0.00035068,3]
[312106911,1705630252212,-500.0,0.00035068,3]
[312106912,1705630252222,-532.95,0.00035068,3]
[312106913,1705630252230,-500.0,0.00035068,3]
[312106914,1705630252240,-2493.26,0.00035068,3]
[312106915,1705630252248,-600.2,0.00035068,3]
[312106916,1705630252257,-500.0,0.00035068,14]
[312106917,1705630252267,-500.0,0.00035068,3]
[312106918,1705630252276,-540.53,0.00035068,3]
[312106919,1705630252285,-500.0,0.00035068,3]
[312106920,1705630252294,-975.55,0.00035068,3]
[312106921,1705630252303,-1628.83,0.00035068,3]
[312106922,1705630252312,-1875.28,0.00035068,3]
[312106923,1705630252321,-554.19,0.00035068,3]
[312106924,1705630252330,-500.0,0.00035068,3]
[312106925,1705630252338,-500.0,0.00035068,3]
[312106926,1705630252348,-618.85,0.00035068,3]
[312106927,1705630252357,-500.0,0.00035068,3]
[312106928,1705630252366,-707.09,0.00035068,3]
[312106929,1705630252375,-1096.83,0.00035068,3]
[312106930,1705630252384,-1452.86,0.00035068,3]
[312106931,1705630252393,-1634.22,0.00035068,3]
[312106932,1705630252402,-8867.42,0.00035068,3]
[312106933,1705630252411,-332.54218263,0.00035068,3]
[312106934,1705630252420,-1388.87,0.00035068,3]
[312106935,1705630252430,-750.83,0.00035068,3]
[312106936,1705630252440,-13711.72,0.00035068,3]
[312106937,1705630252449,-318.73889736,0.00035068,3]
[312106938,1705630252458,-2926.93,0.00035068,3]
[312106939,1705630252467,-872.03,0.00035068,3]
[312106940,1705630252477,-500.0,0.00035068,3]
[312106941,1705630252486,-3844.51,0.00035068,3]
[312106942,1705630252494,-500.0,0.00035068,3]
[312106943,1705630252503,-637.62,0.00035068,3]
[312106944,1705630252513,-3594.7,0.00035068,3]
[312106945,1705630252522,-1827.79,0.00035068,3]
[312106946,1705630252531,-500.0,0.00035068,3]
[312106947,1705630252540,-1139.26,0.00035068,3]
[312106948,1705630252549,-1875.08,0.00035068,3]
[312106949,1705630252558,-151.0,0.00035164,4]
[312106950,1705630252568,-151.0,0.00035195,2]
[312106951,1705630252576,-250.0,0.00035199,15]
[312106952,1705630252586,-1611.070596,0.00035342,2]
[312106953,1705630252595,-1611.070596,0.00035342,2]
[312106954,1705630252604,-3656.988551,0.00035342,2]
[312106955,1705630252613,-3656.988551,0.00035342,2]
[312106956,1705630252622,-500.0,0.00035342,3]
[312106957,1705630252631,-500.0,0.00035342,3]
[312106958,1705630252640,-500.0,0.00035342,3]
[312106959,1705630252650,-537.49,0.00035342,3]
[312106960,1705630252660,-500.0,0.00035342,3]
[312106961,1705630252669,-854.95,0.00035342,3]
[312106962,1705630252678,-500.0,0.00035342,3]
[312106963,1705630252687,-500.0,0.00035342,3]
[312106964,1705630252698,-500.0,0.00035342,3]
[312106965,1705630252707,-1002.73,0.00035342,3]
[312106966,1705630252717,-528.86,0.00035342,3]
[312106967,1705630252727,-1240.85,0.00035342,3]
[312106968,1705630252736,-500.0,0.00035342,3]
[312106969,1705630252745,-532.95,0.00035342,3]
[312106970,1705630252754,-500.0,0.00035342,3]
[312106971,1705630252764,-2493.26,0.00035342,3]
[312106972,1705630252774,-600.2,0.00035342,3]
[312106973,1705630252787,-500.0,0.00035342,14]
[312106974,1705630252797,-500.0,0.00035342,3]
[312106975,1705630252808,-540.53,0.00035342,3]
[312106976,1705630252818,-500.0,0.00035342,3]
[312106977,1705630252830,-975.55,0.00035342,3]
[312106978,1705630252839,-1628.83,0.00035342,3]
[312106979,1705630252849,-1875.28,0.00035342,3]
[312106980,1705630252858,-554.19,0.00035342,3]
[312106981,1705630252869,-500.0,0.00035342,3]
[312106982,1705630252878,-500.0,0.00035342,3]
[312106983,1705630252887,-618.85,0.00035342,3]
[312106984,1705630252896,-500.0,0.00035342,3]
[312106985,1705630252907,-707.09,0.00035342,3]
[312106986,1705630252916,-1096.83,0.00035342,3]
[312106987,1705630252926,-1452.86,0.00035342,3]
[312106988,1705630252935,-1634.22,0.00035342,3]
[312106989,1705630252947,-8867.42,0.00035342,3]
[312106990,1705630252958,-1388.87,0.00035342,3]
[312106991,1705630252967,-750.83,0.00035342,3]
[312106992,1705630252977,-13711.72,0.00035342,3]
[312106993,1705630253047,-2926.93,0.00035342,3]
[312106994,1705630253057,-872.03,0.00035342,3]
[312106995,1705630253067,-500.0,0.00035342,3]
[312106996,1705630253076,-3844.51,0.00035342,3]
[312106997,1705630253085,-500.0,0.00035342,3]
[312106998,1705630253095,-637.62,0.00035342,3]
[312106999,1705630253104,-3594.7,0.00035342,3]
[312107000,1705630253114,-1827.79,0.00035342,3]
[312107001,1705630253123,-500.0,0.00035342,3]
[312107002,1705630253132,-1139.26,0.00035342,3]
[312107003,1705630253142,-1875.08,0.00035342,3]
[312107004,1705630253151,-8000.0,0.00035455,14]
[312107005,1705630253160,-151.0,0.00035469,2]
[312107006,1705630253169,-150.0,0.00035518,2]
[312107007,1705630253179,-163.68735223,0.00035519,2]
[312107008,1705630253188,-151.0,0.00035616,2]
[312107009,1705630253200,-151.0,0.00035616,2]
[312107010,1705630253209,-151.23843,0.00035616,2]
[312107011,1705630253218,-1611.070596,0.00035616,2]
[312107012,1705630253227,-1611.070596,0.00035616,2]
[312107013,1705630253236,-500.0,0.00035616,3]
[312107014,1705630253245,-500.0,0.00035616,3]
[312107015,1705630253254,-500.0,0.00035616,3]
[312107016,1705630253263,-537.49,0.00035616,3]
[312107017,1705630253272,-500.0,0.00035616,3]
[312107018,1705630253281,-854.95,0.00035616,3]
[312107019,1705630253291,-500.0,0.00035616,3]
[312107020,1705630253299,-500.0,0.00035616,3]
[312107021,1705630253308,-500.0,0.00035616,3]
[312107022,1705630253318,-1002.73,0.00035616,3]
[312107023,1705630253327,-528.86,0.00035616,3]
[312107024,1705630253337,-1240.85,0.00035616,3]
[312107025,1705630253346,-323.99396492,0.00035616,3]
[312107026,1705630253355,-532.95,0.00035616,3]
[312107027,1705630253364,-500.0,0.00035616,3]
[312107028,1705630253374,-2493.26,0.00035616,3]
[312107029,1705630253382,-600.2,0.00035616,3]
[312107030,1705630253391,-500.0,0.00035616,14]
[312107031,1705630253401,-500.0,0.00035616,3]
[312107032,1705630253410,-540.53,0.00035616,3]
[312107033,1705630253419,-500.0,0.00035616,3]
[312107034,1705630253428,-975.55,0.00035616,3]
[312107035,1705630253437,-1628.83,0.00035616,3]
[312107036,1705630253449,-1875.28,0.00035616,3]
[312107037,1705630253458,-554.19,0.00035616,3]
[312107038,1705630253467,-500.0,0.00035616,3]
[312107039,1705630253477,-500.0,0.00035616,3]
[312107040,1705630253486,-618.85,0.00035616,3]
[312107041,1705630253495,-310.9647475,0.00035616,3]
[312107042,1705630253504,-707.09,0.00035616,3]
[312107043,1705630253513,-1096.83,0.00035616,3]
[312107044,1705630253522,-1452.86,0.00035616,3]
[312107045,1705630253531,-1634.22,0.00035616,3]
[312107046,1705630253541,-8867.42,0.00035616,3]
[312107047,1705630253549,-1388.87,0.00035616,3]
[312107048,1705630253559,-750.83,0.00035616,3]
[312107049,1705630253568,-13711.72,0.00035616,3]
[312107050,1705630253577,-2926.93,0.00035616,3]
[312107051,1705630253586,-872.03,0.00035616,3]
[312107052,1705630253595,-500.0,0.00035616,3]
[312107053,1705630253604,-3844.51,0.00035616,3]
[312107054,1705630253613,-500.0,0.00035616,3]
[312107055,1705630253622,-637.62,0.00035616,3]
[312107056,1705630253631,-3594.7,0.00035616,3]
[312107057,1705630253641,-151.07506449,0.00035616,7]
[312107058,1705630253650,-1827.79,0.00035616,3]
[312107059,1705630253659,-500.0,0.00035616,3]
[312107060,1705630253668,-1139.26,0.00035616,3]
[312107061,1705630253677,-671.202628,0.00035616,120]
[312107062,1705630253686,-154.05769166,0.0003571,7]
[312107063,1705630253697,-249.830723,0.00035889,2]
[312107064,1705630253706,-3656.988551,0.00035889,2]
[312107065,1705630253715,-3656.98855,0.00035889,2]
[312107066,1705630253724,-500.0,0.0003589,3]
[312107067,1705630253734,-500.0,0.0003589,3]
[312107068,1705630253742,-500.0,0.0003589,3]
[312107069,1705630253751,-537.49,0.0003589,3]
[312107070,1705630253761,-500.0,0.0003589,3]
[312107071,1705630253770,-854.95,0.0003589,3]
[312107072,1705630253779,-500.0,0.0003589,3]
[312107073,1705630253791,-500.0,0.0003589,3]
[312107074,1705630253800,-500.0,0.0003589,3]
[312107075,1705630253809,-1002.73,0.0003589,3]
[312107076,1705630253818,-528.86,0.0003589,3]
[312107077,1705630253828,-1240.85,0.0003589,3]
[312107078,1705630253837,-532.95,0.0003589,3]
[312107079,1705630253846,-182.815096,0.0003589,3]
[312107080,1705630253855,-2493.26,0.0003589,3]
[312107081,1705630253866,-600.2,0.0003589,3]
[312107082,1705630253875,-500.0,0.0003589,14]
[312107083,1705630253884,-500.0,0.0003589,3]
[312107084,1705630253893,-540.53,0.0003589,3]
[312107085,1705630253902,-500.0,0.0003589,3]
[312107086,1705630253911,-975.55,0.0003589,3]
[312107087,1705630253920,-1628.83,0.0003589,3]
[312107088,1705630253930,-1875.28,0.0003589,3]
[312107089,1705630253940,-554.19,0.0003589,3]
[312107090,1705630253949,-500.0,0.0003589,3]
[312107091,1705630253958,-500.0,0.0003589,3]
[312107092,1705630253967,-618.85,0.0003589,3]
[312107093,1705630253976,-707.09,0.0003589,3]
[312107094,1705630253986,-1096.83,0.0003589,3]
[312107095,1705630253995,-1452.86,0.0003589,3]
[312107096,1705630254004,-1634.22,0.0003589,3]
[312107097,1705630254013,-8867.42,0.0003589,3]
[312107098,1705630254022,-1388.87,0.0003589,3]
[312107099,1705630254031,-750.83,0.0003589,3]
[312107100,1705630254041,-13711.72,0.0003589,3]
[312107101,1705630254050,-2926.93,0.0003589,3]
[312107102,1705630254060,-872.03,0.0003589,3]
[312107103,1705630254069,-500.0,0.0003589,3]
[312107104,1705630254080,-3844.51,0.0003589,3]
[312107105,1705630254089,-491.4098809,0.0003589,3]
[312107106,1705630254098,-637.62,0.0003589,3]
[312107107,1705630254107,-3594.7,0.0003589,3]
[312107108,1705630254116,-500.0,0.0003589,3]
[312107109,1705630254125,-1827.79,0.0003589,3]
[312107110,1705630254134,-1139.26,0.0003589,3]
[312107111,1705630254143,-151.0,0.0003589,2]
[312107112,1705630254152,-246.245075,0.0003589,2]
[312107113,1705630254161,-1611.070596,0.0003589,2]
[312107114,1705630254170,-1611.07060079,0.0003589,2]
[312107115,1705630254179,-473.0,0.000359,2]
[312107116,1705630254187,-2000.0,0.00036,2]
[312107117,1705630254198,-150.0,0.00036,4]
[312107118,1705630254209,-169.0,0.00036,2]
[312107119,1705630254219,-500.0,0.00036164,3]
[312107120,1705630254228,-500.0,0.00036164,3]
[312107121,1705630254236,-500.0,0.00036164,3]
[312107122,1705630254245,-537.49,0.00036164,3]
[312107123,1705630254311,-500.0,0.00036164,3]
[312107124,1705630254320,-854.95,0.00036164,3]
[312107125,1705630254329,-500.0,0.00036164,3]
[312107126,1705630254338,-500.0,0.00036164,3]
[312107127,1705630254347,-500.0,0.00036164,3]
[312107128,1705630254357,-1002.73,0.00036164,3]
[312107129,1705630254366,-528.86,0.00036164,3]
[312107130,1705630254375,-1240.85,0.00036164,3]
[312107131,1705630254384,-532.95,0.00036164,3]
[312107132,1705630254393,-2493.26,0.00036164,3]
[312107133,1705630254402,-600.2,0.00036164,3]
[312107134,1705630254412,-500.0,0.00036164,14]
[312107135,1705630254422,-500.0,0.00036164,3]
[312107136,1705630254431,-540.53,0.00036164,3]
[312107137,1705630254442,-500.0,0.00036164,3]
[312107138,1705630254451,-975.55,0.00036164,3]
[312107139,1705630254460,-1628.83,0.00036164,3]
[312107140,1705630254471,-1875.28,0.00036164,3]
[312107141,1705630254481,-554.19,0.00036164,3]
[312107142,1705630254490,-500.0,0.00036164,3]
[312107143,1705630254499,-500.0,0.00036164,3]
[312107144,1705630254508,-618.85,0.00036164,3]
[312107145,1705630254517,-707.09,0.00036164,3]
[312107146,1705630254526,-1096.83,0.00036164,3]
[312107147,1705630254535,-1452.86,0.00036164,3]
[312107148,1705630254544,-1634.22,0.00036164,3]
[312107149,1705630254553,-8867.42,0.00036164,3]
[312107150,1705630254562,-1388.87,0.00036164,3]
[312107151,1705630254571,-750.83,0.00036164,3]
[312107152,1705630254580,-13711.72,0.00036164,3]
[312107153,1705630254589,-2926.93,0.00036164,3]
[312107154,1705630254599,-872.03,0.00036164,3]
[312107155,1705630254608,-500.0,0.00036164,3]
[312107156,1705630254617,-3844.51,0.00036164,3]
[312107157,1705630254626,-637.62,0.00036164,3]
[312107158,1705630254635,-3594.7,0.00036164,3]
[312107159,1705630254644,-500.0,0.00036164,3]
[312107160,1705630254653,-1827.79,0.00036164,3]
[312107161,1705630254662,-1139.26,0.00036164,3]
[312107162,1705630254671,-151.0,0.00036164,2]
[312107163,1705630254681,-151.0,0.00036221,4]
[312107164,1705630254692,-2706.2756614,0.00036305,5]
[312107165,1705630254701,-500.0,0.00036438,3]
[312107166,1705630254711,-500.0,0.00036438,3]
[312107167,1705630254720,-500.0,0.00036438,3]
[312107168,1705630254729,-537.49,0.00036438,3]
[312107169,1705630254739,-500.0,0.00036438,3]
[312107170,1705630254749,-854.95,0.00036438,3]
[312107171,1705630254758,-500.0,0.00036438,3]
[312107172,1705630254767,-500.0,0.00036438,3]
[312107173,1705630254777,-500.0,0.00036438,3]
[312107174,1705630254788,-1002.73,0.00036438,3]
[312107175,1705630254798,-528.86,0.00036438,3]
[312107176,1705630254808,-1240.85,0.00036438,3]
[312107177,1705630254817,-532.95,0.00036438,3]
[312107178,1705630254827,-2493.26,0.00036438,3]
[312107179,1705630254837,-600.2,0.00036438,3]
[312107180,1705630254846,-500.0,0.00036438,14]
[312107181,1705630254855,-500.0,0.00036438,3]
[312107182,1705630254866,-540.53,0.00036438,3]
[312107183,1705630254875,-266.68158331,0.00036438,3]
[312107184,1705630254884,-975.55,0.00036438,3]
[312107185,1705630254893,-1628.83,0.00036438,3]
[312107186,1705630254903,-1875.28,0.00036438,3]
[312107187,1705630254912,-554.19,0.00036438,3]
[312107188,1705630254922,-540.81226192,0.00036438,3]
[312107189,1705630254931,-500.0,0.00036438,3]
[312107190,1705630254941,-618.85,0.00036438,3]
[312107191,1705630254951,-707.09,0.00036438,3]
[312107192,1705630254960,-1096.83,0.00036438,3]
[312107193,1705630254970,-1452.86,0.00036438,3]
[312107194,1705630254981,-1634.22,0.00036438,3]
[312107195,1705630254990,-8867.42,0.00036438,3]
[312107196,1705630255000,-1388.87,0.00036438,3]
[312107197,1705630255010,-750.83,0.00036438,3]
[312107198,1705630255020,-13711.72,0.00036438,3]
[312107199,1705630255031,-2926.93,0.00036438,3]
[312107200,1705630255041,-872.03,0.00036438,3]
[312107201,1705630255051,-500.0,0.00036438,3]
[312107202,1705630255060,-3844.51,0.00036438,3]
[312107203,1705630255070,-637.62,0.00036438,3]
[312107204,1705630255080,-3594.7,0.00036438,3]
[312107205,1705630255090,-500.0,0.00036438,3]
[312107206,1705630255100,-1827.79,0.00036438,3]
[312107207,1705630255109,-1139.26,0.00036438,3]
[312107208,1705630255119,-428.744075,0.00036575,4]
[312107209,1705630255130,-500.0,0.00036712,3]
[312107210,1705630255139,-500.0,0.00036712,3]
[312107211,1705630255149,-500.0,0.00036712,3]
[312107212,1705630255159,-537.49,0.00036712,3]
[312107213,1705630255169,-500.0,0.00036712,3]
[312107214,1705630255179,-854.95,0.00036712,3]
[312107215,1705630255188,-500.0,0.00036712,3]
[312107216,1705630255198,-472.97180904,0.00036712,3]
[312107217,1705630255206,-500.0,0.00036712,3]
[312107218,1705630255216,-1002.73,0.00036712,3]
[312107219,1705630255225,-528.86,0.00036712,3]
[312107220,1705630255234,-1240.85,0.00036712,3]
[312107221,1705630255243,-532.95,0.00036712,3]
[312107222,1705630255252,-2493.26,0.00036712,3]
[312107223,1705630255262,-600.2,0.00036712,3]
[312107224,1705630255271,-295.23486051,0.00036712,14]
[312107225,1705630255280,-500.0,0.00036712,3]
[312107226,1705630255289,-540.53,0.00036712,3]
[312107227,1705630255298,-975.55,0.00036712,3]
[312107228,1705630255307,-1628.83,0.00036712,3]
[312107229,1705630255316,-1875.28,0.00036712,3]
[312107230,1705630255325,-554.19,0.00036712,3]
[312107231,1705630255334,-500.0,0.00036712,3]
[312107232,1705630255344,-618.85,0.00036712,3]
[312107233,1705630255354,-707.09,0.00036712,3]
[312107234,1705630255365,-1096.83,0.00036712,3]
[312107235,1705630255375,-1452.86,0.00036712,3]
[312107236,1705630255384,-1634.22,0.00036712,3]
[312107237,1705630255393,-8867.42,0.00036712,3]
[312107238,1705630255402,-1388.87,0.00036712,3]
[312107239,1705630255411,-750.83,0.00036712,3]
[312107240,1705630255421,-13711.72,0.00036712,3]
[312107241,1705630255429,-2926.93,0.00036712,3]
[312107242,1705630255492,-872.03,0.00036712,3]
[312107243,1705630255501,-500.0,0.00036712,3]
[312107244,1705630255510,-3844.51,0.00036712,3]
[312107245,1705630255519,-637.62,0.00036712,3]
[312107246,1705630255528,-3594.7,0.00036712,3]
[312107247,1705630255538,-500.0,0.00036712,3]
[312107248,1705630255547,-1827.79,0.00036712,3]
[312107249,1705630255556,-1139.26,0.00036712,3]
[312107250,1705630255565,-151.0,0.00036712,2]
[312107251,1705630255574,-5000.0,0.00036793,2]
[312107252,1705630255582,-167.44197221,0.00036838,2]
[312107253,1705630255591,-2076.58050402,0.00036852,4]
[312107254,1705630255601,-49001.43341778,0.00036919,10]
[312107255,1705630255610,-500.0,0.00036986,3]
[312107256,1705630255619,-200.10810013,0.00036986,3]
[312107257,1705630255628,-500.0,0.00036986,3]
[312107258,1705630255636,-537.49,0.00036986,3]
[312107259,1705630255645,-500.0,0.00036986,3]
[312107260,1705630255654,-854.95,0.00036986,3]
[312107261,1705630255663,-648.02650527,0.00036986,3]
[312107262,1705630255673,-500.0,0.00036986,3]
[312107263,1705630255682,-1002.73,0.00036986,3]
[312107264,1705630255693,-528.86,0.00036986,3]
[312107265,1705630255702,-1240.85,0.00036986,3]
[312107266,1705630255711,-532.95,0.00036986,3]
[312107267,1705630255720,-2493.26,0.00036986,3]
[312107268,1705630255730,-600.2,0.00036986,3]
[312107269,1705630255739,-283.4326015,0.00036986,3]
[312107270,1705630255748,-540.53,0.00036986,3]
[312107271,1705630255758,-975.55,0.00036986,3]
[312107272,1705630255767,-1628.83,0.00036986,3]
[312107273,1705630255776,-1875.28,0.00036986,3]
[312107274,1705630255786,-554.19,0.00036986,3]
[312107275,1705630255796,-397.60975853,0.00036986,3]
[312107276,1705630255806,-618.85,0.00036986,3]
[312107277,1705630255815,-707.09,0.00036986,3]
[312107278,1705630255824,-1096.83,0.00036986,3]
[312107279,1705630255834,-1452.86,0.00036986,3]
[312107280,1705630255843,-1634.22,0.00036986,3]
[312107281,1705630255852,-8867.42,0.00036986,3]
[312107282,1705630255862,-1388.87,0.00036986,3]
[312107283,1705630255870,-750.83,0.00036986,3]
[312107284,1705630255879,-13711.72,0.00036986,3]
[312107285,1705630255888,-2926.93,0.00036986,3]
[312107286,1705630255897,-872.03,0.00036986,3]
[312107287,1705630255907,-500.0,0.00036986,3]
[312107288,1705630255916,-3844.51,0.00036986,3]
[312107289,1705630255925,-637.62,0.00036986,3]
[312107290,1705630255935,-3594.7,0.00036986,3]
[312107291,1705630255944,-500.0,0.00036986,3]
[312107292,1705630255953,-1827.79,0.00036986,3]
[312107293,1705630255961,-1139.26,0.00036986,3]
[312107294,1705630255971,-151.0,0.00036986,2]
[312107295,1705630255980,-3000.0,0.00037,120]
[312107296,1705630255989,-2000.0,0.00037,4]
[312107297,1705630255999,-150.0,0.00037,4]
[312107298,1705630256008,-11228.67865662,0.00037156,12]
[312107299,1705630256018,-202.203832,0.0003726,2]
[312107300,1705630256027,-500.0,0.0003726,3]
[312107301,1705630256036,-500.0,0.0003726,3]
[312107302,1705630256045,-537.49,0.0003726,3]
[312107303,1705630256054,-500.0,0.0003726,3]
[312107304,1705630256066,-854.95,0.0003726,3]
[312107305,1705630256075,-500.14478667,0.0003726,3]
[312107306,1705630256085,-435.30831378,0.0003726,3]
[312107307,1705630256269,-221.96221791,0.00032876,2]
[312107308,1705630256278,-500.0,0.00032876,2]
[312107309,1705630256287,-204.71722728,0.00032876,2]
[312107310,1705630256334,-295.28277272,0.00032876,2]
[312107311,1705630256343,-500.0,0.00032876,2]
[312107312,1705630256352,-500.0,0.00032876,2]
[312107313,1705630256361,-500.0,0.00032876,7]
[312107314,1705630256370,-500.0,0.0003315,3]
[312107315,1705630256380,-551.55,0.00033424,3]
[312107316,1705630256390,-1875.08,0.00035616,3]
[312107317,1705630256399,-1875.08,0.0003589,3]
[312107318,1705630256408,-1875.08,0.00036164,3]
[312107319,1705630256417,-708.92491876,0.00036438,3]
[312107320,1705630256479,-500.0,0.00032876,2]
[312107321,1705630256489,-500.0,0.00032876,2]
[312107322,1705630256498,-500.0,0.00032876,2]
[312107323,1705630256508,-1166.15508124,0.00036438,3]
[312107324,1705630256516,-1875.08,0.00036712,3]
[312107325,1705630256525,-1875.08,0.00036986,3]
[312107326,1705630256585,-567.42168622,0.0003726,3]